{"text_format":"1","workbook":"xlsx","n_sheets":12,"sheets":["Datos sitio","1, Aspectos generales","2, Identidad e Información","3, Estructura y navegación","4, Rotulado","5, Layout de la página","6, Entendibilidad y Faciliddad ","7, Control y Retoalimentación","8, Elementos multimedia","9, Búsqueda","10, Ayuda","Valores"],"not_rendered":{"charts":0,"images":12,"macros":1,"external_links":0,"defined_names":5,"comments":0,"pivot_tables":0},"unopened":[],"bounds":{"document_bytes":16777216,"sheet_cells":100000,"rows_first":2000,"rows_last":500,"rows_between":2000,"halvings":0,"cell_chars":16384,"cell_head_chars":4096},"cells_cut":0,"cells_raw":0,"read":"whole","date_system":"1900"}

{"sheet":"Datos sitio","index":0,"n_rows":41,"n_cols":5,"rows_kept":41,"cut":false,"hidden":false,"merged":[]}
["Checklist para revisión heurística de usabilidad basada en la tesis de  Mª del Carmen Suárez Torrente ",null,null,null,"Autor: Olga Carreras"]
["Sirius: Sistema de Evaluación de la Usabilidad Web Orientado al Usuario y basado en la Determinación de Tareas Críticas ",null,null,null,"Usable y accesible"]
[null,null,null,null,"Artículo:  http://olgacarreras.blogspot.com/2011/07/sirius-nueva-sistema-para-la-evaluacion.html"]
[]
["DATOS GENERALES DE LA EVALUACIÓN"]
["Evaluador"]
["Fecha de evaluación"]
["Nombre del sitio"]
["URL del sitio"]
["Tipo de sitio",null,"(nota: no admite la definición de sitio híbrido, ver pp. 162 de la tesis)"]
["Navegador con el que se revisa"]
["Versión el navegador"]
[]
["Porcentaje de usabilidad*"]
[]
[]
["* se obtiene de aplicar la siguiente formula (se debería programar para que Excel la realizara automáticamente según todos los datos de la hoja)"]
[]
[]
[]
[]
[]
[]
[]
[]
[]
[]
[]
[]
[]
["nce: número de criterios evaluados. Será como máximo los 83. Los NA no contabilizan"]
["vc: valor de evaluación de un criterio (campo de la columna Valor interno)"]
["fc: Factor de corrección aplicado al criterio evaluado. El valor del factor de corrección de cada uno de los criterios evaluados se obtiene de la siguiente manera:"]
[]
[]
[]
[]
[]
[]
["siendo:"]
["rc : Valor de relevancia que corresponde a un criterio (campo de la columna Relevancia)"]

{"sheet":"1, Aspectos generales","index":1,"n_rows":22,"n_cols":7,"rows_kept":22,"cut":false,"hidden":false,"merged":[[0,0,0,6]]}
["CRITERIOS DEL \"HEURÍSTICO ASPECTOS GENERALES\": Elementos relacionados con los objetivos del sitio, el look & feel, coherencia y nivel de actualización de contenidos. "]
["Código","Criterio","Valor","Relevancia *","Comentarios","Valor interno","Valor interno de relevancia"]
["AG.1","Objetivos del sitio web concretos y bien definidos",null,null,null,{"$f":"txtNum(C3)","v":""},{"$f":"txtRel(D3)","v":""}]
["AG.2","Contenidos o servicios ofrecidos precisos y completos ",null,null,null,{"$f":"txtNum(C4)","v":""},""]
["AG.3","Estructura general del sitio web orientada al usuario ",null,null,null,"",""]
["AG.4","Look & Feel general se corresponde con los objetivos, características, contenidos y servicios del sitio web",null,null,null,"",""]
["AG.5","Diseño general del sitio web reconocible ",null,null,null,"",""]
["AG.6","Diseño general del sitio web coherente",null,null,null,"",""]
["AG.7","Se utiliza el idioma del usuario",null,null,null,"",""]
["AG.8","Se da soporte a otro/s idioma/s ",null,null,null,"",""]
["AG.9","Traducción del sitio completa y correcta ",null,null,null,"",""]
["AG.10","Sitio web actualizado periódicamente",null,null,null,"",""]
[]
[null,null,"Leyenda Valor"]
[null,null,0,"No se cumple en abosuluto",null,"NEP","No se cumple en los enlaces principales"]
[null,null,10,"Se cumple totalmente",null,"NPP ","No se cumple en la página principal"]
[null,null,"NA","Criterio no aplicable en el sitio",null,"NPI","No se cumple en alguna página interior"]
[null,null,"NTS ","No se cumple en todo el sitio",null,"S ","Se cumple el criterio"]
[]
[]
["*Relevancia"]
["Se aplica el tipo de sitio definido en Datos del sitio según esta tabla (debería programarse para que el valor lo pusiera excel automáticamente)"]

{"sheet":"2, Identidad e Información","index":2,"n_rows":19,"n_cols":7,"rows_kept":19,"cut":false,"hidden":false,"merged":[]}
["CRITERIOS DEL \"IDENTIDAD E INFORMACIÓN\": Elementos relacionados con la identidad del sitio, la información proporcionada sobre el proveedor y la autoría de los contenidos. "]
["Código","Criterio","Valor","Relevancia *","Comentarios","Valor interno","Valor interno de relevancia"]
["II.1","Identidad o logotipo significativo, identificable y suficientemente visible",null,null,null,{"$f":"txtNum(C3)","v":""},{"$f":"txtRel(D3)","v":""}]
["II.2","Identidad del sitio en todas las páginas",null,null,null,{"$f":"txtNum(C4)","v":""},""]
["II.3","Eslogan o tagline adecuado al objetivo del sitio",null,null,null,"",""]
["II.4","Se ofrece información sobre el sitio web, empresa",null,null,null,"",""]
["II.5","Existen mecanismos de contacto",null,null,null,"",""]
["II.6","Se ofrece información sobre la protección de datos de carácter personal o los\nderechos de autor de los contenidos del sitio web",null,null,null,"",""]
["II.7","Se ofrece información sobre el autor, fuentes y fechas de creación y revisión\nen artículos, noticias, informes",null,null,null,"",""]
[]
[null,null,"Leyenda Valor"]
[null,null,0,"No se cumple en abosuluto",null,"NEP","No se cumple en los enlaces principales"]
[null,null,10,"Se cumple totalmente",null,"NPP ","No se cumple en la página principal"]
[null,null,"NA","Criterio no aplicable en el sitio",null,"NPI","No se cumple en alguna página interior"]
[null,null,"NTS ","No se cumple en todo el sitio",null,"S ","Se cumple el criterio"]
[]
[]
["*Relevancia"]
["Se aplica el tipo de sitio definido en Datos del sitio según esta tabla (debería programarse para que el valor lo pusiera excel automáticamente)"]

{"sheet":"3, Estructura y navegación","index":3,"n_rows":26,"n_cols":7,"rows_kept":26,"cut":false,"hidden":false,"merged":[]}
["CRITERIOS DEL \"ESTRUCTURA Y NAVEGACIÓN\": Elementos relacionados con la idoneidad de la arquitectura de la información y la navegación del sitio."]
["Código","Criterio","Valor","Relevancia *","Comentarios","Valor interno","Valor interno de relevancia"]
["EN.1","Se ha evitado pantalla de bienvenida",null,null,null,{"$f":"txtNum(C3)","v":""},{"$f":"txtRel(D3)","v":""}]
["EN.2","Estructura de organización y navegación adecuada",null,null,null,{"$f":"txtNum(C4)","v":""},""]
["EN.3","Organización de elementos consistente con convenciones",null,null,null,"",""]
["EN.4","Control del número de elementos y de términos por elemento en\nlos menús de navegación",null,null,null,"",""]
["EN.5","Equilibrio entre profundidad y anchura en el caso de estructura\njerárquica",null,null,null,"",""]
["EN.6","Enlaces fácilmente reconocibles como tales",null,null,null,"",""]
["EN.7","La caracterización de los enlaces indica su estado (visitados, activos)",null,null,null,"",""]
["EN.8","No hay redundancia de enlaces",null,null,null,"",""]
["EN.9","No hay enlaces rotos",null,null,null,"",""]
["EN.10","No hay enlaces que lleven a la misma página que se está visualizando",null,null,null,"",""]
["EN.11","En las imágenes de enlace se indica el contenido al que se va a acceder",null,null,null,"",{"$f":"txtRel(D13)","v":""}]
["EN.12","Existe un enlace para volver al inicio en cada página",null,null,null,"",""]
["EN.13","Existen elementos de navegación que orienten al usuario acerca de dónde está y cómo deshacer su navegación (ej: migas)\n",null,null,null,"",""]
["EN.14","Existe mapa del sitio para acceder directamente a los contenidos sin\nnavegar",null,null,null,"",""]
[]
[null,null,"Leyenda Valor"]
[null,null,0,"No se cumple en abosuluto",null,"NEP","No se cumple en los enlaces principales"]
[null,null,10,"Se cumple totalmente",null,"NPP ","No se cumple en la página principal"]
[null,null,"NA","Criterio no aplicable en el sitio",null,"NPI","No se cumple en alguna página interior"]
[null,null,"NTS ","No se cumple en todo el sitio",null,"S ","Se cumple el criterio"]
[]
[]
["*Relevancia"]
["Se aplica el tipo de sitio definido en Datos del sitio según esta tabla (debería programarse para que el valor lo pusiera excel automáticamente)"]

{"sheet":"4, Rotulado","index":4,"n_rows":18,"n_cols":7,"rows_kept":18,"cut":false,"hidden":false,"merged":[]}
["CRITERIOS DEL \"ROTULADO\": Elementos relacionados con la significación, corrección y familiaridad del rotulado de los contenidos. "]
["Código","Criterio","Valor","Relevancia *","Comentarios","Valor interno","Valor interno de relevancia"]
["RO.1","Rótulos significativos",null,null,null,{"$f":"txtNum(C3)","v":""},{"$f":"txtRel(D3)","v":""}]
["RO.2","Sistema de rotulado controlado y preciso",null,null,null,{"$f":"txtNum(C4)","v":""},""]
["RO.3","Título de las páginas, correcto y planificado",null,null,null,"",""]
["RO.4","URL página principal correcta, clara y fácil de recordar",null,null,null,"",""]
["RO.5","URLs de páginas internas claras",null,null,null,"",""]
["RO.6","URLs de páginas internas permanentes",null,null,null,"",""]
[]
[null,null,"Leyenda Valor"]
[null,null,0,"No se cumple en abosuluto",null,"NEP","No se cumple en los enlaces principales"]
[null,null,10,"Se cumple totalmente",null,"NPP ","No se cumple en la página principal"]
[null,null,"NA","Criterio no aplicable en el sitio",null,"NPI","No se cumple en alguna página interior"]
[null,null,"NTS ","No se cumple en todo el sitio",null,"S ","Se cumple el criterio"]
[]
[]
["*Relevancia"]
["Se aplica el tipo de sitio definido en Datos del sitio según esta tabla (debería programarse para que el valor lo pusiera excel automáticamente)"]

{"sheet":"5, Layout de la página","index":5,"n_rows":22,"n_cols":7,"rows_kept":22,"cut":false,"hidden":false,"merged":[]}
["CRITERIOS DEL \"LAYOUT DE LA PÁGINA\": Elementos relacionados con la distribución y el aspecto de los elementos de navegación e información en la interfaz"]
["Código","Criterio","Valor","Relevancia *","Comentarios","Valor interno","Valor interno de relevancia"]
["LA.1","Se aprovechan las zonas de alta jerarquía informativa de la página para contenidos de mayor relevancia",null,null,null,{"$f":"txtNum(C3)","v":""},{"$f":"txtRel(D3)","v":""}]
["LA.2","Se ha evitado la sobrecarga informativa",null,null,null,{"$f":"txtNum(C4)","v":""},""]
["LA.3","Es una interfaz limpia, sin ruido visual",null,null,null,"",""]
["LA.4","Existen zonas en blanco entre los objetos informativos de la página\npara poder descansar la vista",null,null,null,"",""]
["LA.5","Uso correcto del espacio visual de la página",null,null,null,"",""]
["LA.6","Se utiliza correctamente la jerarquía visual para expresar las relaciones del tipo \"parte de\" entre los elementos de la página",null,null,null,"",""]
["LA.7","Se ha controlado la longitud de página",null,null,null,"",""]
["LA.8","La versión impresa de la página es correcta",null,null,null,"",""]
["LA.9","El texto de la página se lee sin dificultad",null,null,null,"",""]
["LA.10","Se ha evitado el texto parpadeante / deslizante",null,null,null,"",""]
[]
[null,null,"Leyenda Valor"]
[null,null,0,"No se cumple en abosuluto",null,"NEP","No se cumple en los enlaces principales"]
[null,null,10,"Se cumple totalmente",null,"NPP ","No se cumple en la página principal"]
[null,null,"NA","Criterio no aplicable en el sitio",null,"NPI","No se cumple en alguna página interior"]
[null,null,"NTS ","No se cumple en todo el sitio",null,"S ","Se cumple el criterio"]
[]
[]
["*Relevancia"]
["Se aplica el tipo de sitio definido en Datos del sitio según esta tabla (debería programarse para que el valor lo pusiera excel automáticamente)"]

{"sheet":"6, Entendibilidad y Faciliddad ","index":6,"n_rows":19,"n_cols":7,"rows_kept":19,"cut":false,"hidden":false,"merged":[]}
["CRITERIOS DEL \"ENTENDIBILIDAD Y FACILIDAD EN LA INTERACCIÓN\": Elementos relacionados con la adecuación y calidad de los contenidos textuales, iconos y controles de la interfaz."]
["Código","Criterio","Valor","Relevancia *","Comentarios","Valor interno","Valor interno de relevancia"]
["EF.1","Se emplea un lenguaje claro y conciso",null,null,null,{"$f":"txtNum(C3)","v":""},{"$f":"txtRel(D3)","v":""}]
["EF.2","Lenguaje amigable, familiar y cercano",null,null,null,{"$f":"txtNum(C4)","v":""},""]
["EF.3","Cada párrafo expresa una idea",null,null,null,"",""]
["EF.4","Uso consistente de los controles de la interfaz",null,null,null,"",""]
["EF.5","Metáforas visibles reconocibles y comprensibles por cualquier\nusuario (ej.: iconos)",null,null,null,"",""]
["EF.6","Si se usan menús desplegables, orden coherente o alfabético",null,null,null,"",""]
["EF.7","Si el usuario tiene que rellenar un campo, las opciones disponibles\nse pueden seleccionar en vez de tener que escribirlas",null,null,null,"",""]
[]
[null,null,"Leyenda Valor"]
[null,null,0,"No se cumple en abosuluto",null,"NEP","No se cumple en los enlaces principales"]
[null,null,10,"Se cumple totalmente",null,"NPP ","No se cumple en la página principal"]
[null,null,"NA","Criterio no aplicable en el sitio",null,"NPI","No se cumple en alguna página interior"]
[null,null,"NTS ","No se cumple en todo el sitio",null,"S ","Se cumple el criterio"]
[]
[]
["*Relevancia"]
["Se aplica el tipo de sitio definido en Datos del sitio según esta tabla (debería programarse para que el valor lo pusiera excel automáticamente)"]

{"sheet":"7, Control y Retoalimentación","index":7,"n_rows":22,"n_cols":7,"rows_kept":22,"cut":false,"hidden":false,"merged":[[0,0,0,8]]}
["CRITERIOS DEL \"CONTROL Y RETORALIMENTACIÓN\": Elementos relacionados con libertad del usuario en la navegación y la información proporcionada al mismo en el proceso de interacción con el sitio."]
["Código","Criterio","Valor","Relevancia *","Comentarios","Valor interno","Valor interno de relevancia"]
["CR.1","El usuario tiene todo el control sobre la interfaz",null,null,null,{"$f":"txtNum(C3)","v":""},{"$f":"txtRel(D3)","v":""}]
["CR.2","Se informa al usuario acerca de lo que está pasando",null,null,null,{"$f":"txtNum(C4)","v":""},""]
["CR.3","Se informa al usuario de lo que ha pasado",null,null,null,"",""]
["CR.4","Existen sistemas de validación antes de que el usuario envíe información para tratar de evitar errores",null,null,null,"",""]
["CR.5","Cuando se produce un error, se informa de forma clara y no alarmista al usuario de lo ocurrido y de cómo solucionar el problema",null,null,null,"",""]
["CR.6","Se ha controlado el tiempo de respuesta",null,null,null,"",""]
["CR.7","Se ha evitado que las ventanas del sitio anulen o se superpongan a la del navegador",null,null,null,"",""]
["CR.8","Se ha evitado la proliferación de ventanas en la pantalla del usuario",null,null,null,"",""]
["CR.9","Se ha evitado la descarga por parte del usuario de plugins adicionales",null,null,null,"",""]
["CR.10","Si existen tareas de varios pasos, se indica al usuario en cual está y cuantos faltan para completar la tarea",null,null,null,"",""]
[]
[null,null,"Leyenda Valor"]
[null,null,0,"No se cumple en abosuluto",null,"NEP","No se cumple en los enlaces principales"]
[null,null,10,"Se cumple totalmente",null,"NPP ","No se cumple en la página principal"]
[null,null,"NA","Criterio no aplicable en el sitio",null,"NPI","No se cumple en alguna página interior"]
[null,null,"NTS ","No se cumple en todo el sitio",null,"S ","Se cumple el criterio"]
[]
[]
["*Relevancia"]
["Se aplica el tipo de sitio definido en Datos del sitio según esta tabla (debería programarse para que el valor lo pusiera excel automáticamente)"]

{"sheet":"8, Elementos multimedia","index":8,"n_rows":18,"n_cols":7,"rows_kept":18,"cut":false,"hidden":false,"merged":[]}
["CRITERIOS DEL \"ELEMENTOS MULTIMEDIA\": Elementos relacionados con el grado de adecuación de los contenidos multimedia al sitio web."]
["Código","Criterio","Valor","Relevancia *","Comentarios","Valor interno","Valor interno de relevancia"]
["EM.1","Fotografías bien recortadas",null,null,null,{"$f":"txtNum(C3)","v":""},{"$f":"txtRel(D3)","v":""}]
["EM.2","Fotografías comprensibles",null,null,null,{"$f":"txtNum(C4)","v":""},""]
["EM.3","Fotografías con correcta resolución",null,null,null,"",""]
["EM.4","El uso de imágenes o animaciones proporciona algún tipo de valor añadido",null,null,null,"",""]
["EM.5","Se ha evitado el uso de animaciones cíclicas",null,null,null,"",""]
["EM.6","El uso de sonido proporciona algún tipo de valor añadido",null,null,null,"",""]
[]
[null,null,"Leyenda Valor"]
[null,null,0,"No se cumple en abosuluto",null,"NEP","No se cumple en los enlaces principales"]
[null,null,10,"Se cumple totalmente",null,"NPP ","No se cumple en la página principal"]
[null,null,"NA","Criterio no aplicable en el sitio",null,"NPI","No se cumple en alguna página interior"]
[null,null,"NTS ","No se cumple en todo el sitio",null,"S ","Se cumple el criterio"]
[]
[]
["*Relevancia"]
["Se aplica el tipo de sitio definido en Datos del sitio según esta tabla (debería programarse para que el valor lo pusiera excel automáticamente)"]

{"sheet":"9, Búsqueda","index":9,"n_rows":20,"n_cols":7,"rows_kept":20,"cut":false,"hidden":false,"merged":[[0,0,0,6]]}
["CRITERIOS DEL \"BÚSQUEDA\": Elementos relacionados con el buscador implementado en el sitio web."]
["Código","Criterio","Valor","Relevancia *","Comentarios","Valor interno","Valor interno de relevancia"]
["BU.1","Si es necesaria, se encuentra accesible desde todas las páginas del sitio",null,null,null,{"$f":"txtNum(C3)","v":""},{"$f":"txtRel(D3)","v":""}]
["BU.2","Es fácilmente reconocible como tal",null,null,null,{"$f":"txtNum(C4)","v":""},""]
["BU.3","Se encuentra fácilmente accesible",null,null,null,"",""]
["BU.4","La caja de texto es lo suficientemente ancha",null,null,null,"",""]
["BU.5","Sistema de búsqueda simple y claro",null,null,null,"",""]
["BU.6","Permite la búsqueda avanzada",null,null,null,"",""]
["BU.7","Muestra los resultados de la búsqueda de forma comprensible para el usuario",null,null,null,"",""]
["BU.8","Asiste al usuario en caso de no poder ofrecer resultados para una consultada dada",null,null,null,"",""]
[]
[null,null,"Leyenda Valor"]
[null,null,0,"No se cumple en abosuluto",null,"NEP","No se cumple en los enlaces principales"]
[null,null,10,"Se cumple totalmente",null,"NPP ","No se cumple en la página principal"]
[null,null,"NA","Criterio no aplicable en el sitio",null,"NPI","No se cumple en alguna página interior"]
[null,null,"NTS ","No se cumple en todo el sitio",null,"S ","Se cumple el criterio"]
[]
[]
["*Relevancia"]
["Se aplica el tipo de sitio definido en Datos del sitio según esta tabla (debería programarse para que el valor lo pusiera excel automáticamente)"]

{"sheet":"10, Ayuda","index":10,"n_rows":17,"n_cols":7,"rows_kept":17,"cut":false,"hidden":false,"merged":[]}
["CRITERIOS DEL \"AYUDA\": Elementos relacionados con la ayuda ofrecida al usuario durante la navegación por el sitio."]
["Código","Criterio","Valor","Relevancia *","Comentarios","Valor interno","Valor interno de relevancia"]
["AY.1","El enlace a la sección de Ayuda, colocado en una zona visible y\nestándar",null,null,null,{"$f":"txtNum(C3)","v":""},{"$f":"txtRel(D3)","v":""}]
["AY.2","Fácil acceso y retorno al/del sistema de ayuda",null,null,null,{"$f":"txtNum(C4)","v":""},{"$f":"txtRel(D4)","v":""}]
["AY.3","Se ofrece ayuda contextual en tareas complejas",null,null,null,"",{"$f":"txtRel(D5)","v":""}]
["AY.4","FAQs (si la hay), correcta la elección como la redacción de las\npreguntas",null,null,null,"",{"$f":"txtRel(D6)","v":""}]
["AY.5","FAQs (si la hay), correcta la redacción de las respuestas",null,null,null,"",{"$f":"txtRel(D7)","v":""}]
[]
[null,null,"Leyenda Valor"]
[null,null,0,"No se cumple en abosuluto",null,"NEP","No se cumple en los enlaces principales"]
[null,null,10,"Se cumple totalmente",null,"NPP ","No se cumple en la página principal"]
[null,null,"NA","Criterio no aplicable en el sitio",null,"NPI","No se cumple en alguna página interior"]
[null,null,"NTS ","No se cumple en todo el sitio",null,"S ","Se cumple el criterio"]
[]
[]
["*Relevancia"]
["Se aplica el tipo de sitio definido en Datos del sitio según esta tabla (debería programarse para que el valor lo pusiera excel automáticamente)"]

{"sheet":"Valores","index":11,"n_rows":20,"n_cols":10,"rows_kept":20,"cut":false,"hidden":false,"merged":[]}
[]
[]
[]
[]
[0,null,"NTS",null,"Administración Pública/Institucional",null,null,null,null,"CR"]
[1,null,"NEP",null,"Banca electrónica",null,null,null,null,"MA"]
[2,null,"NPP",null,"Blog",null,null,null,null,"ME"]
[3,null,"NPI",null,"Comercio electrónico",null,null,null,null,"MO"]
[4,null,"S",null,"Comunicación/Noticias"]
[5,null,"NA",null,"Corporativo/Empresas"]
[6,null,null,null,"Descargas"]
[7,null,null,null,"Educativo/Formativo"]
[8,null,null,null,"Entornos colaborativos/Wikis"]
[9,null,null,null,"Foros/Chat"]
[10,null,null,null,"Ocio/Entretenimiento"]
["NA",null,null,null,"Personal"]
[null,null,null,null,"Portal de Servicios"]
[null,null,null,null,"Servicios interactivos basados en imágenes"]
[null,null,null,null,"Servicios interactivos no basados en imágenes"]
[null,null,null,null,"Webmail/Correo"]